{"text_format":"1","workbook":"xlsx","n_sheets":5,"sheets":["Edit･Print","BackUp","Template","Schedule","Prototype"],"not_rendered":{"charts":0,"images":0,"macros":1,"external_links":0,"defined_names":9,"comments":0,"pivot_tables":0},"unopened":[],"bounds":{"document_bytes":16777216,"sheet_cells":100000,"rows_first":2000,"rows_last":500,"rows_between":2000,"halvings":0,"cell_chars":16384,"cell_head_chars":4096},"cells_cut":0,"cells_raw":0,"read":"whole","date_system":"1900"}

{"sheet":"Edit･Print","index":0,"n_rows":212,"n_cols":29,"rows_kept":212,"cut":false,"hidden":false,"merged":[[0,0,0,2],[0,6,0,7],[0,26,1,26],[1,0,1,2],[36,1,36,7],[5,0,11,0],[12,0,18,0],[19,0,25,0],[26,0,32,0],[33,0,35,0],[0,9,0,10],[2,10,2,12],[1,9,1,10]]}
["カレンダー月の\n最初の日を入力",null,null,"2023-04-01","カレンダーの曜日設定",null,"　注意事項：祝日の文字色は手動で変更してください\n　　　　　　　 カレンダー下部の翌月分はセルを選択し\n　　　　　　　手動でDeleteしてください",null,null,"ミーティング参加計画表作成ワークブック\n　    　　　　　　　  あゆむ\n　　　　　歩くん",null,"Ver 2.01\n20210305","First Version\n20190630",null,null,null,null,null,null,null,null,null,null,null,null,null,"ゆかりグループ","金"]
["このシートを\n印刷します",null,null,null,"BackUpシートにこのシートの\n内容をコピーします",null,"このシートをTemplateの\n状態にリセットします",null,null,"（　山口版　）",null,{"$f":"CONCATENATE(\"DATA：\",Template!H1)","v":"DATA：2023.12.3"},null,null,null,null,null,null,null,null,null,null,null,null,null,null,null,"日"]
[null,"ミーティング参加計画表",null,null,null,null,null,{"$f":"D1","v":"2023-04-01"},null,"操作の手引\nはこちら","ブラウザでPDFファイルを開く",null,null,null,null,null,null,null,null,null,null,null,null,null,null,null,"カレンダーの曜日設定"]
[null,null,null,null,null,null,null,null,null,"感想･意見･要望を","Ｍａｉｌ","で作成者に送る"]
[null,"日","曜","グ　ル　ー　プ","会　場","時　間","内　容","備　考",null,null,null,null,null,null,null,null,null,null,null,null,null,null,null,null,null,null,null,"計算式","テキスト変換"]
[1,{"$f":"D1","v":"2023-04-01"},null,null,null,null,null,null,null,null,null,null,null,null,null,null,null,null,null,null,null,null,null,null,null,null,null,{"$f":"TEXT(B6,\"aaa\")","v":"土"},"月"]
[null,{"$f":"B6+1","v":"2023-04-02"},null,null,null,null,null,null,null,null,null,null,null,null,null,null,null,null,null,null,null,null,null,null,null,null,null,{"$f":"TEXT(B7,\"aaa\")","v":"日"},"火"]
[null,{"$f":"B7+1","v":"2023-04-03"},null,null,null,null,null,null,null,null,null,null,null,null,null,null,null,null,null,null,null,null,null,null,null,null,null,"月","水"]
[null,"2023-04-04",null,null,null,null,null,null,null,null,null,null,null,null,null,null,null,null,null,null,null,null,null,null,null,null,null,"火","木"]
[null,"2023-04-05",null,null,null,null,null,null,null,null,null,null,null,null,null,null,null,null,null,null,null,null,null,null,null,null,null,"水","金"]
[null,"2023-04-06",null,null,null,null,null,null,null,null,null,null,null,null,null,null,null,null,null,null,null,null,null,null,null,null,null,"木","土"]
[null,"2023-04-07",null,null,null,null,null,null,null,null,null,null,null,null,null,null,null,null,null,null,null,null,null,null,null,null,null,"金","日"]
[2,"2023-04-08",null,null,null,null,null,null,null,null,null,null,null,null,null,null,null,null,null,null,null,null,null,null,null,null,null,"土","月"]
[null,"2023-04-09",null,null,null,null,null,null,null,null,null,null,null,null,null,null,null,null,null,null,null,null,null,null,null,null,null,"日","火"]
[null,"2023-04-10",null,null,null,null,null,null,null,null,null,null,null,null,null,null,null,null,null,null,null,null,null,null,null,null,null,"月","水"]
[null,"2023-04-11",null,null,null,null,null,null,null,null,null,null,null,null,null,null,null,null,null,null,null,null,null,null,null,null,null,"火","木"]
[null,"2023-04-12",null,null,null,null,null,null,null,null,null,null,null,null,null,null,null,null,null,null,null,null,null,null,null,null,null,"水","金"]
[null,"2023-04-13",null,null,null,null,null,null,null,null,null,null,null,null,null,null,null,null,null,null,null,null,null,null,null,null,null,"木","土"]
[null,"2023-04-14",null,null,null,null,null,null,null,null,null,null,null,null,null,null,null,null,null,null,null,null,null,null,null,null,null,"金","日"]
[3,"2023-04-15",null,null,null,null,null,null,null,null,null,null,null,null,null,null,null,null,null,null,null,null,null,null,null,null,null,"土","月"]
[null,"2023-04-16",null,null,null,null,null,null,null,null,null,null,null,null,null,null,null,null,null,null,null,null,null,null,null,null,null,"日","火"]
[null,"2023-04-17",null,null,null,null,null,null,null,null,null,null,null,null,null,null,null,null,null,null,null,null,null,null,null,null,null,"月","水"]
[null,"2023-04-18",null,null,null,null,null,null,null,null,null,null,null,null,null,null,null,null,null,null,null,null,null,null,null,null,null,"火","木"]
[null,"2023-04-19",null,null,null,null,null,null,null,null,null,null,null,null,null,null,null,null,null,null,null,null,null,null,null,null,null,"水","金"]
[null,"2023-04-20",null,null,null,null,null,null,null,null,null,null,null,null,null,null,null,null,null,null,null,null,null,null,null,null,null,"木","土"]
[null,"2023-04-21",null,null,null,null,null,null,null,null,null,null,null,null,null,null,null,null,null,null,null,null,null,null,null,null,null,"金","日"]
[4,"2023-04-22",null,null,null,null,null,null,null,null,null,null,null,null,null,null,null,null,null,null,null,null,null,null,null,null,null,"土","月"]
[null,"2023-04-23",null,null,null,null,null,null,null,null,null,null,null,null,null,null,null,null,null,null,null,null,null,null,null,null,null,"日","火"]
[null,"2023-04-24",null,null,null,null,null,null,null,null,null,null,null,null,null,null,null,null,null,null,null,null,null,null,null,null,null,"月","水"]
[null,"2023-04-25",null,null,null,null,null,null,null,null,null,null,null,null,null,null,null,null,null,null,null,null,null,null,null,null,null,"火","木"]
[null,"2023-04-26",null,null,null,null,null,null,null,null,null,null,null,null,null,null,null,null,null,null,null,null,null,null,null,null,null,"水","金"]
[null,"2023-04-27",null,null,null,null,null,null,null,null,null,null,null,null,null,null,null,null,null,null,null,null,null,null,null,null,null,"木","土"]
[null,"2023-04-28",null,null,null,null,null,null,null,null,null,null,null,null,null,null,null,null,null,null,null,null,null,null,null,null,null,"金","日"]
[5,"2023-04-29",null,null,null,null,null,null,null,null,null,null,null,null,null,null,null,null,null,null,null,null,null,null,null,null,null,"土","月"]
[null,"2023-04-30",null,null,null,null,null,null,null,null,null,null,null,null,null,null,null,null,null,null,null,null,null,null,null,null,null,"日","火"]
[null,"2023-05-01",null,null,null,null,null,null,null,null,null,null,null,null,null,null,null,null,null,null,null,null,null,null,null,null,null,"月","水"]
[null," MEMO\n\n　"]
[null,"日","曜","グ　ル　ー　プ","会　場","時　間","内　容","備　考"]
[1,null,"月","西京グループ","山口市しらさぎ会館","19:00～20:30","テーマ","祝祭日は\n白石地域交流センター"]
[1,null,"月","宇部グループ","宇部市総合福祉会館","19:00～20:30","テーマ"]
[1,null,"月","ＨＳグループ","西宇部ふれあいセンター","19:00～20:30","ステップ"]
[1,null,"月","山口つばさグループ","日本キリスト教団宇部緑橋教会","19:00～20:30","ステップ"]
[1,null,"月","美祢ミーティング","美祢市勤労福祉会館","19:00～20:30","ビッグブック","オープン"]
[1,null,"月","院内ミーティング","高嶺病院（作業場４）","19:00～20:30","ビギナーズ（Ｑ＆Ａ･テーマ）"]
[1,null,"火","山口つばさグループ","日本キリスト教団宇部緑橋教会","19:00～20:30","テーマ"]
[1,null,"火","厚狭グループ","山陽小野田市厚狭地区複合施設","19:00～20:30","ビッグブック","オープン"]
[1,null,"火","光グループ","岩国市東供用会館","19:00～20:30","テーマ・今日を新たに","オープン"]
[1,null,"火","ステップミーティング","小羽山ふれあいセンター","19:00～20:30","ステップ　Ｑ＆Ａ"]
[1,null,"火","ＡＡ勉強会","高嶺病院","19:00～20:00"]
[1,null,"水","ＨＳグループ","山陽小野田市須恵地域交流センター","19:00～20:30","ビッグブック"]
[1,null,"水","徳山グループ","徳山カトリック教会","18:30～19:50","テーマ","オープン"]
[1,null,"水","宇部グループ","上宇部隣保館","19:00～20:30","テーマ","オープン"]
[1,null,"水","セイルオフグループ","小羽山ふれあいセンター","19:00～20:30","ビッグブック"]
[1,null,"水","ヤングミーティング","宇部市総合福祉会館","19:30～20:30","テーマ","35歳以下・ダブルクローズド"]
[1,null,"木","宇部高嶺グループ","宇部市総合福祉会館","19:00～20:30","テーマ"]
[1,null,"木","アジスグループ","元気ハウス(中村区公民館横)","19:00～20:30","テーマ"]
[1,null,"木","長門グループ","長門市地域福祉センター","18:30～19:30","ステップ"]
[1,null,"木","しんさくグループ","下関市清末公民館","19:00～20:30","伝統"]
[1,null,"木","きぼうグループ","日本キリスト教団宇部緑橋教会","19:30～20:30","テーマ"]
[1,null,"金","西京グループ","山口市しらさぎ会館","19:00～20:30","テーマ","オープン　　　祝祭日は\n白石地域交流センター"]
[1,null,"金","きぼうグループ","宇部市総合福祉会館","19:00～20:00","テーマ"]
[1,null,"金","下関グループ","下関市勤労福祉会館","19:00～20:30","テーマ","祝祭日は中止"]
[1,null,"金","ゆかりグループ","神原ふれあいセンター","19:30～21:00","テーマ"]
[1,null,"金","光グループ","光キリスト教会","19:00～20:30","テーマ･今日を新たに","オープン"]
[1,null,"土","宇部グループ","宇部市琴芝ふれあいセンター","19:00～20:30","サービス"]
[1,null,"土","しんさくグループ","下関市清末公民館","19:00～20:30","テーマ","オープン"]
[1,null,"土","宇部高嶺グループ","宇部市総合福祉会館","19:00～20:30","テーマ"]
[1,null,"土","徳山グループ","徳山カトリック教会","18:30～19:50","テーマ","オープン"]
[1,null,"土","山口ワンデーグループ","小郡ふれあいセンター","19:00～20:30","ビッグブック","オープン"]
[1,null,"土","セイルオフグループ","小羽山ふれあいセンター","19:30～20:30","伝統"]
[1,null,"土","美祢グループ","美祢市勤労福祉会館","19:30～20:30","テーマ"]
[1,null,"日","宇部グループ","宇部市総合福祉会館","18:00～19:30","ステップ"]
[1,null,"日","ゆかりグループ","日本キリスト教団宇部緑橋教会","19:00～20:30","ステップ","ＢＢ使用"]
[1,null,"日","ＡＡラーン","高嶺病院","14:00～15:00","テーマ"]
[2,null,"月","西京グループ","山口市しらさぎ会館","19:00～20:30","ビジネス・伝統","祝祭日は\n白石地域交流センター"]
[2,null,"月","宇部グループ","宇部市総合福祉会館","19:00～20:30","ビッグブック"]
[2,null,"月","ＨＳグループ","西宇部ふれあいセンター","19:00～20:30","伝統"]
[2,null,"月","山口つばさグループ","日本キリスト教団宇部緑橋教会","19:00～20:30","伝統"]
[2,null,"月","院内ミーティング","高嶺病院（作業場４）","19:00～20:30","ビギナーズ（Ｑ＆Ａ･テーマ）"]
[2,null,"火","山口つばさグループ","日本キリスト教団宇部緑橋教会","19:00～20:30","バースデー"]
[2,null,"火","光グループ","岩国市東供用会館","19:00～20:30","テーマ・今日を新たに","オープン"]
[2,null,"火","ステップミーティング","小羽山ふれあいセンター","19:00～20:30","ステップ　分合"]
[2,null,"水","ＨＳグループ","山陽小野田市須恵地域交流センター","19:00～20:30","テーマ"]
[2,null,"水","徳山グループ","徳山カトリック教会","18:30～19:50","テーマ","オープン"]
[2,null,"水","セイルオフグループ","小羽山ふれあいセンター","19:00～20:30","テーマ"]
[2,null,"水","ヤングミーティング","宇部市総合福祉会館","19:30～20:30","テーマ","35歳以下・ダブルクローズド"]
[2,null,"水","女性ミーティング","宇部市総合福祉会館","13:30～15:00","テーマ","ダブルクローズド"]
[2,null,"木","宇部グループ","山陽小野田市須恵地域交流センター","19:00～20:30","ステップ"]
[2,null,"木","宇部高嶺グループ","宇部市総合福祉会館","19:00～20:30","ステップ"]
[2,null,"木","アジスグループ","元気ハウス(中村区公民館横)","19:00～20:30","テーマ","オープン"]
[2,null,"木","長門グループ","長門市地域福祉センター","18:30～19:30","ビッグブック"]
[2,null,"木","しんさくグループ","下関市清末公民館","19:00～20:30","ビッグブック","オープン"]
[2,null,"木","きぼうグループ","日本キリスト教団宇部緑橋教会","19:30～20:30","ビッグブック"]
[2,null,"金","西京グループ","山口市しらさぎ会館","19:00～20:30","テーマ","オープン　　　祝祭日は\n白石地域交流センター"]
[2,null,"金","きぼうグループ","宇部市総合福祉会館","19:00～20:00","ステップ"]
[2,null,"金","下関グループ","下関市勤労福祉会館","19:00～20:30","ステップ","祝祭日は中止"]
[2,null,"金","ゆかりグループ","神原ふれあいセンター","19:30～21:00","ステップ","ＢＢ使用"]
[2,null,"金","光グループ","光キリスト教会","19:00～20:30","ステップ","オープン"]
[2,null,"土","宇部グループ","宇部市琴芝ふれあいセンター","19:00～20:30","ビジネス"]
[2,null,"土","宇部高嶺グループ","宇部市総合福祉会館","19:00～20:30","リビングソーバー"]
[2,null,"土","徳山グループ","徳山カトリック教会","18:30～19:50","テーマ","オープン"]
[2,null,"土","山口ワンデーグループ","小郡ふれあいセンター","19:00～20:30","テーマ","オープン"]
[2,null,"土","萩グループ","萩カトリック教会","19:00～20:30","テーマ","オープン"]
[2,null,"土","セイルオフグループ","小羽山ふれあいセンター","19:30～20:30","テーマ"]
[2,null,"土","美祢グループ","美祢市勤労福祉会館","19:30～20:30","ビッグブック"]
[2,null,"日","宇部グループ","宇部市総合福祉会館","18:00～19:30","テーマ"]
[2,null,"日","ゆかりグループ","日本キリスト教団宇部緑橋教会","19:00～20:30","テーマ"]
[2,null,"日","ＡＡラーン","高嶺病院","14:00～15:00","テーマ"]
[3,null,"月","西京グループ","山口市しらさぎ会館","19:00～20:30","ステップ","祝祭日は\n白石地域交流センター"]
[3,null,"月","宇部グループ","宇部市総合福祉会館","19:00～20:30","テーマ"]
[3,null,"月","ＨＳグループ","西宇部ふれあいセンター","19:00～20:30","テーマ","オープン"]
[3,null,"月","山口つばさグループ","日本キリスト教団宇部緑橋教会","19:00～20:30","ビッグブック"]
[3,null,"月","美祢ミーティング","美祢市勤労福祉会館","19:00～20:30","テーマ","オープン"]
[3,null,"月","院内ミーティング","高嶺病院（作業場４）","19:00～20:30","ビギナーズ（Ｑ＆Ａ･テーマ）"]
[3,null,"火","山口つばさグループ","日本キリスト教団宇部緑橋教会","19:00～20:30","テーマ"]
[3,null,"火","厚狭グループ","山陽小野田市厚狭地区複合施設","19:00～20:30","１２ ＆ １２","オープン"]
[3,null,"火","光グループ","岩国市東供用会館","19:00～20:30","リビングソーバー","オープン"]
[3,null,"火","ステップミーティング","小羽山ふれあいセンター","19:00～20:30","ステップ　Ｑ＆Ａ"]
[3,null,"火","ＡＡ勉強会","高嶺病院","19:00～20:00"]
[3,null,"水","ＨＳグループ","山陽小野田市須恵地域交流センター","19:00～20:30","ステップ","オープン"]
[3,null,"水","徳山グループ","徳山カトリック教会","18:30～19:50","テーマ","オープン"]
[3,null,"水","宇部グループ","上宇部隣保館","19:00～20:30","テーマ","オープン"]
[3,null,"水","セイルオフグループ","小羽山ふれあいセンター","19:00～20:30","テーマ"]
[3,null,"水","ヤングミーティング","高嶺病院内","19:00～20:30","テーマ","35歳以下・ダブルクローズド\nＯＢ参加可"]
[3,null,"木","宇部高嶺グループ","宇部市総合福祉会館","19:00～20:30","テーマ"]
[3,null,"木","アジスグループ","元気ハウス(中村区公民館横)","19:00～20:30","ビッグブック"]
[3,null,"木","長門グループ","長門市地域福祉センター","18:30～19:30","ステップ"]
[3,null,"木","しんさくグループ","下関市清末公民館","19:00～20:30","ビジネス"]
[3,null,"木","きぼうグループ","日本キリスト教団宇部緑橋教会","19:30～20:30","ビジネス・伝統"]
[3,null,"金","西京グループ","山口市しらさぎ会館","19:00～20:30","テーマ","オープン　　　祝祭日は\n白石地域交流センター"]
[3,null,"金","きぼうグループ","宇部市総合福祉会館","19:00～20:00","テーマ"]
[3,null,"金","下関グループ","下関市勤労福祉会館","19:00～20:30","ビジネス・伝統","祝祭日は中止"]
[3,null,"金","ゆかりグループ","神原ふれあいセンター","19:30～21:00","テーマ・バースデー","(ミーティング後・磨く会）"]
[3,null,"金","光グループ","光キリスト教会","19:00～20:30","テーマ･今日を新たに","オープン"]
[3,null,"土","宇部グループ","宇部市琴芝ふれあいセンター","19:00～20:30","伝統"]
[3,null,"土","しんさくグループ","下関市清末公民館","19:00～20:30","テーマ","オープン"]
[3,null,"土","宇部高嶺グループ","宇部市総合福祉会館","19:00～20:30","テーマ"]
[3,null,"土","徳山グループ","徳山カトリック教会","18:30～19:50","テーマ","オープン"]
[3,null,"土","山口ワンデーグループ","小郡ふれあいセンター","19:00～20:30","ステップ","オープン"]
[3,null,"土","セイルオフグループ","小羽山ふれあいセンター","19:30～20:30","テーマ"]
[3,null,"土","美祢グループ","美祢市勤労福祉会館","19:30～20:30","テーマ"]
[3,null,"日","宇部グループ","宇部市総合福祉会館","18:00～19:30","ステップ"]
[3,null,"日","ゆかりグループ","日本キリスト教団宇部緑橋教会","19:00～20:30","ステップ","ＢＢ使用"]
[3,null,"日","ＡＡラーン","高嶺病院","14:00～15:00","テーマ"]
[4,null,"月","西京グループ","山口市しらさぎ会館","19:00～20:30","テーマ","祝祭日は\n白石地域交流センター"]
[4,null,"月","宇部グループ","宇部市総合福祉会館","19:00～20:30","ビッグブック"]
[4,null,"月","ＨＳグループ","西宇部ふれあいセンター","19:00～20:30","ビジネス"]
[4,null,"月","山口つばさグループ","日本キリスト教団宇部緑橋教会","19:00～20:30","ビジネス"]
[4,null,"月","院内ミーティング","高嶺病院（作業場４）","19:00～20:30","ビギナーズ（Ｑ＆Ａ･テーマ）"]
[4,null,"火","山口つばさグループ","日本キリスト教団宇部緑橋教会","19:00～20:30","テーマ"]
[4,null,"火","光グループ","岩国市東供用会館","19:00～20:30","テーマ・今日を新たに","オープン"]
[4,null,"火","ステップミーティング","小羽山ふれあいセンター","19:00～20:30","ステップ　分合"]
[4,null,"水","ＨＳグループ","山陽小野田市須恵地域交流センター","19:00～20:30","テーマ"]
[4,null,"水","徳山グループ","徳山カトリック教会","18:30～19:50","テーマ","オープン"]
[4,null,"水","セイルオフグループ","小羽山ふれあいセンター","19:00～20:30","ビジネス"]
[4,null,"水","ヤングミーティング","宇部市総合福祉会館","19:30～20:30","テーマ","35歳以下・ダブルクローズド"]
[4,null,"水","第四水曜日の会","日本キリスト教団宇部教会","19:00～20:30","テーマ","オンライン併用"]
[4,null,"水","院内ミーティング","宇部協立病院内","14:00～15:15","ビギナーズ（Ｑ＆Ａ、テーマ）","祝祭日は中止・オープン"]
[4,null,"木","宇部グループ","山陽小野田市須恵地域交流センター","19:00～20:30","ステップ"]
[4,null,"木","宇部高嶺グループ","宇部市総合福祉会館","19:00～20:30","伝統"]
[4,null,"木","アジスグループ","元気ハウス(中村区公民館横)","19:00～20:30","テーマ","オープン"]
[4,null,"木","長門グループ","長門市地域福祉センター","18:30～19:30","伝統"]
[4,null,"木","しんさくグループ","下関市清末公民館","19:00～20:30","ビッグブック","オープン"]
[4,null,"木","きぼうグループ","日本キリスト教団宇部緑橋教会","19:30～20:30","ビッグブック"]
[4,null,"金","西京グループ","山口市しらさぎ会館","19:00～20:30","テーマ","オープン　　　祝祭日は\n白石地域交流センター"]
[4,null,"金","きぼうグループ","宇部市総合福祉会館","19:00～20:00","ステップ"]
[4,null,"金","下関グループ","下関市勤労福祉会館","19:00～20:30","ビッグブック","祝祭日は中止"]
[4,null,"金","ゆかりグループ","神原ふれあいセンター","19:30～21:00","ステップ","ＢＢ使用"]
[4,null,"金","光グループ","光キリスト教会","19:00～20:30","テーマ","オープン"]
[4,null,"土","宇部グループ","宇部市琴芝ふれあいセンター","19:00～20:30","ビジネス"]
[4,null,"土","宇部高嶺グループ","宇部市総合福祉会館","19:00～20:30","今日を新たに"]
[4,null,"土","徳山グループ","徳山カトリック教会","18:30～19:50","テーマ","オープン"]
[4,null,"土","山口ワンデーグループ","小郡ふれあいセンター","19:00～20:30","テーマ","オープン"]
[4,null,"土","萩グループ","萩カトリック教会","19:00～20:30","テーマ","オープン"]
[4,null,"土","セイルオフグループ","小羽山ふれあいセンター","19:30～20:30","テーマ"]
[4,null,"土","美祢グループ","美祢市勤労福祉会館","19:30～20:30","ビッグブック"]
[4,null,"日","宇部グループ","宇部市総合福祉会館","18:00～19:30","テーマ","最終週はバースデー"]
[4,null,"日","ゆかりグループ","日本キリスト教団宇部緑橋教会","19:00～20:30","ビジネス"]
[4,null,"日","ＡＡラーン","高嶺病院","14:00～15:00","テーマ"]
[5,null,"月","西京グループ","山口市しらさぎ会館","19:00～20:30","テーマ","祝祭日は\n白石地域交流センター"]
[5,null,"月","宇部グループ","宇部市総合福祉会館","19:00～20:30","テーマ"]
[5,null,"月","ＨＳグループ","西宇部ふれあいセンター","19:00～20:30","テーマ"]
[5,null,"月","山口つばさグループ","日本キリスト教団宇部緑橋教会","19:00～20:30","テーマ"]
[5,null,"月","院内ミーティング","高嶺病院（作業場４）","19:00～20:30","ビギナーズ（Ｑ＆Ａ･テーマ）"]
[5,null,"火","山口つばさグループ","日本キリスト教団宇部緑橋教会","19:00～20:30","テーマ"]
[5,null,"火","厚狭グループ","山陽小野田市厚狭地区複合施設","19:00～20:30","バースデー・テーマ","オープン"]
[5,null,"火","光グループ","岩国市東供用会館","19:00～20:30","テーマ・今日を新たに","オープン"]
[5,null,"火","ステップミーティング","小羽山ふれあいセンター","19:00～20:30","ビジネス"]
[5,null,"水","ＨＳグループ","山陽小野田市須恵地域交流センター","19:00～20:30","テーマ"]
[5,null,"水","徳山グループ","徳山カトリック教会","18:30～19:50","テーマ","オープン"]
[5,null,"水","セイルオフグループ","小羽山ふれあいセンター","19:00～20:30","テーマ"]
[5,null,"水","ヤングミーティング","宇部市総合福祉会館","19:30～20:30","テーマ","35歳以下・ダブルクローズド"]
[5,null,"木","宇部高嶺グループ","宇部市総合福祉会館","19:00～20:30","テーマ"]
[5,null,"木","アジスグループ","元気ハウス(中村区公民館横)","19:00～20:30","テーマ"]
[5,null,"木","長門グループ","長門市地域福祉センター","18:30～19:30","ビジネス"]
[5,null,"木","しんさくグループ","下関市清末公民館","19:00～20:30","テーマ","オープン"]
[5,null,"木","きぼうグループ","日本キリスト教団宇部緑橋教会","19:30～20:30","テーマ"]
[5,null,"金","西京グループ","山口市しらさぎ会館","19:00～20:30","テーマ","オープン　　　祝祭日は\n白石地域交流センター"]
[5,null,"金","きぼうグループ","宇部市総合福祉会館","19:00～20:00","テーマ"]
[5,null,"金","下関グループ","下関市勤労福祉会館","19:00～20:30","テーマ","祝祭日は中止"]
[5,null,"金","ゆかりグループ","神原ふれあいセンター","19:30～21:00","テーマ"]
[5,null,"金","光グループ","光キリスト教会","19:00～20:30","テーマ･今日を新たに","オープン"]
[5,null,"土","宇部グループ","宇部市琴芝ふれあいセンター","19:00～20:30","ビジネス"]
[5,null,"土","しんさくグループ","下関市清末公民館","19:00～20:30","テーマ","オープン"]
[5,null,"土","宇部高嶺グループ","宇部市総合福祉会館","19:00～20:30","テーマ"]
[5,null,"土","徳山グループ","徳山カトリック教会","18:30～19:50","テーマ","オープン"]
[5,null,"土","山口ワンデーグループ","小郡ふれあいセンター","19:00～20:30","Ｑ＆Ａ・ビジネス","オープン"]
[5,null,"土","セイルオフグループ","小羽山ふれあいセンター","19:30～20:30","サービス"]
[5,null,"土","美祢グループ","美祢市勤労福祉会館","19:30～20:30","テーマ"]
[5,null,"日","宇部グループ","宇部市総合福祉会館","18:00～19:30","テーマ","最終週はバースデー"]
[5,null,"日","ゆかりグループ","日本キリスト教団宇部緑橋教会","19:00～20:30","テーマ","オープン"]
[5,null,"日","ＡＡラーン","高嶺病院","14:00～15:00","テーマ"]

{"sheet":"BackUp","index":1,"n_rows":35,"n_cols":28,"rows_kept":35,"cut":false,"hidden":false,"merged":[[0,26,1,26],[3,0,9,0],[34,1,34,7],[10,0,16,0],[17,0,23,0],[24,0,30,0],[31,0,33,0]]}
[null,"ミーティング参加計画表",null,null,null,null,null,{"$f":"AA4","v":"2021-03-01"},null,null,null,null,null,null,null,null,null,null,null,null,null,null,null,null,null,null,"ゆかりグループ","金"]
[null,null,null,null,null,null,null,null,null,null,null,null,null,null,null,null,null,null,null,null,null,null,null,null,null,null,null,"日"]
[null,"日","曜","グ　ル　ー　プ","会　場","時　間","内　容","備　考",null,null,null,null,null,null,null,null,null,null,null,null,null,null,null,null,null,null,"カレンダー日付"]
[1,{"$f":"AA4","v":"2021-03-01"},null,null,null,null,null,null,null,null,null,null,null,null,null,null,null,null,null,null,null,null,null,null,null,null,"2021-03-01"]
[null,{"$f":"B4+1","v":"2021-03-02"}]
[null,{"$f":"B5+1","v":"2021-03-03"}]
[null,"2021-03-04"]
[null,"2021-03-05"]
[null,"2021-03-06"]
[null,"2021-03-07"]
[2,"2021-03-08"]
[null,"2021-03-09"]
[null,"2021-03-10"]
[null,"2021-03-11"]
[null,"2021-03-12"]
[null,"2021-03-13"]
[null,"2021-03-14"]
[3,"2021-03-15"]
[null,"2021-03-16"]
[null,"2021-03-17"]
[null,"2021-03-18"]
[null,"2021-03-19"]
[null,"2021-03-20"]
[null,"2021-03-21"]
[4,"2021-03-22"]
[null,"2021-03-23"]
[null,"2021-03-24"]
[null,"2021-03-25"]
[null,"2021-03-26"]
[null,"2021-03-27"]
[null,"2021-03-28"]
[5,"2021-03-29"]
[null,"2021-03-30"]
[null,"2021-03-31"]
[null," MEMO\n\n　"]

{"sheet":"Template","index":2,"n_rows":196,"n_cols":11,"rows_kept":196,"cut":false,"hidden":false,"merged":[[2,10,3,16],[36,1,36,7],[5,0,11,0],[12,0,18,0],[19,0,25,0],[26,0,32,0],[33,0,35,0],[4,10,5,16]]}
["This worksheet was created by Pickel (Yukari Group - Yamaguchi)",null,"PW ↓","2019-06-30",null,null,null,"2023.12.3",null,null,"このブックのScheduleシートをアップデートします"]
[null,null,"aaymmt",null,null,null,null,"ＡＡ山口地区ミーティング案内　週間スケジュール表　(2023.12.3 改訂)　より引用 ",null,null,"｢meeting_update｣ファイルを先に開いておいてボタンを押してください"]
[null,"ミーティング参加計画表",null,null,null,null,null,{"$f":"D1","v":"2019-06-30"},null,null,"このシートのミーティング開催予定を Schedule シートの内容に更新します"]
[]
[null,"日","曜","グ　ル　ー　プ","会　場","時　間","内　容","備　考",null,null,"｢Edit･Print」シートの画面表示をお使いのディスプレイに合わせて調整します"]
[1,"1900-01-01"]
[null,{"$f":"B6+1","v":"1900-01-02"}]
[null,{"$f":"B7+1","v":"1900-01-03"}]
[null,"1900-01-04"]
[null,"1900-01-05"]
[null,"1900-01-06"]
[null,"1900-01-07"]
[2,"1900-01-08"]
[null,"1900-01-09"]
[null,"1900-01-10"]
[null,"1900-01-11"]
[null,"1900-01-12"]
[null,"1900-01-13"]
[null,"1900-01-14"]
[3,"1900-01-15"]
[null,"1900-01-16"]
[null,"1900-01-17"]
[null,"1900-01-18"]
[null,"1900-01-19"]
[null,"1900-01-20"]
[null,"1900-01-21"]
[4,"1900-01-22"]
[null,"1900-01-23"]
[null,"1900-01-24"]
[null,"1900-01-25"]
[null,"1900-01-26"]
[null,"1900-01-27"]
[null,"1900-01-28"]
[5,"1900-01-29"]
[null,"1900-01-30"]
[null,"1900-01-31"]
[null," MEMO\n\n　"]
[null,"日","曜","グ　ル　ー　プ","会　場","時　間","内　容","備　考"]
[1,null,"月","西京グループ","山口市しらさぎ会館","19:00～20:30","テーマ","祝祭日は中止"]
[1,null,"月","宇部グループ","宇部市総合福祉会館","19:00～20:30","テーマ"]
[1,null,"月","ＨＳグループ","西宇部ふれあいセンター","19:00～20:30","ステップ"]
[1,null,"月","山口つばさグループ","日本キリスト教団宇部緑橋教会","19:00～20:30","ステップ"]
[1,null,"月","美祢ミーティング","美祢市勤労福祉会館","19:00～20:30","ビッグブック","オープン"]
[1,null,"月","院内ミーティング","高嶺病院（作業場４）","19:00～20:30","ビギナーズ（Ｑ＆Ａ･テーマ）"]
[1,null,"火","光グループ","岩国市東供用会館","19:00～20:30","テーマ・今日を新たに","オープン"]
[1,null,"火","ステップミーティング","小羽山ふれあいセンター","19:00～20:30","ステップ　Ｑ＆Ａ"]
[1,null,"水","ＨＳグループ","山陽小野田市須恵地域交流センター","19:00～20:30","ビッグブック"]
[1,null,"水","徳山グループ","徳山カトリック教会","18:30～19:50","テーマ","オープン"]
[1,null,"水","宇部グループ","上宇部隣保館","19:00～20:30","テーマ","オープン"]
[1,null,"水","セイルオフグループ","小羽山ふれあいセンター","19:00～20:30","ビッグブック"]
[1,null,"水","ヤングミーティング","高嶺病院デイケア棟","19:30～20:30","テーマ","35歳以下・ダブルクローズド"]
[1,null,"木","宇部高嶺グループ","宇部市総合福祉会館","19:00～20:30","テーマ"]
[1,null,"木","アジスグループ","元気ハウス(中村区公民館横)","19:00～20:30","テーマ"]
[1,null,"木","長門グループ","長門市地域福祉センター","18:30～19:30","ステップ"]
[1,null,"木","しんさくグループ","下関市清末公民館","19:00～20:30","伝統"]
[1,null,"木","きぼうグループ","日本キリスト教団宇部緑橋教会","19:30～20:30","テーマ"]
[1,null,"金","西京グループ","山口市しらさぎ会館","19:00～20:30","テーマ","オープン　祝祭日は中止"]
[1,null,"金","下関グループ","下関市勤労福祉会館","19:00～20:00","テーマ","祝祭日は中止"]
[1,null,"金","ゆかりグループ","宇部市神原ふれあいセンター","19:30～21:00","テーマ"]
[1,null,"金","光グループ","光キリスト教会","19:00～20:30","テーマ･今日を新たに","オープン"]
[1,null,"金","きぼうグループ","宇部市総合福祉会館","19:30～20:30","テーマ"]
[1,null,"土","宇部グループ","宇部市琴芝ふれあいセンター","19:00～20:30","サービス"]
[1,null,"土","しんさくグループ","下関市清末公民館","19:00～20:30","テーマ","オープン"]
[1,null,"土","宇部高嶺グループ","宇部市総合福祉会館","19:00～20:30","テーマ"]
[1,null,"土","徳山グループ","徳山カトリック教会","18:30～19:50","テーマ","オープン"]
[1,null,"土","山口ワンデーグループ","小郡ふれあいセンター","19:00～20:30","ビッグブック","オープン"]
[1,null,"土","セイルオフグループ","小羽山ふれあいセンター","19:30～20:30","伝統"]
[1,null,"土","美祢グループ","美祢市勤労福祉会館","19:30～20:30","テーマ"]
[1,null,"日","宇部グループ","宇部市総合福祉会館","18:00～19:30","ステップ"]
[1,null,"日","ゆかりグループ","日本キリスト教団宇部緑橋教会","19:00～20:30","ステップ","ＢＢ使用"]
[1,null,"日","ＡＡラーン","高嶺病院","14:00～15:00","テーマ"]
[2,null,"月","西京グループ","山口市しらさぎ会館","19:00～20:30","ビジネス・伝統","祝祭日は中止"]
[2,null,"月","宇部グループ","宇部市総合福祉会館","19:00～20:30","ビッグブック"]
[2,null,"月","ＨＳグループ","西宇部ふれあいセンター","19:00～20:30","伝統"]
[2,null,"月","山口つばさグループ","日本キリスト教団宇部緑橋教会","19:00～20:30","伝統"]
[2,null,"月","院内ミーティング","高嶺病院（作業場４）","19:00～20:30","ビギナーズ（Ｑ＆Ａ･テーマ）"]
[2,null,"火","厚狭グループ","山陽小野田市厚狭地域交流センター ","19:00～20:30","ビッグブック","オープン"]
[2,null,"火","光グループ","岩国市東供用会館","19:00～20:30","リビングソーバー","オープン"]
[2,null,"火","ステップミーティング","小羽山ふれあいセンター","19:00～20:30","ステップ　分合"]
[2,null,"水","ＨＳグループ","山陽小野田市須恵地域交流センター","19:00～20:30","テーマ"]
[2,null,"水","徳山グループ","徳山カトリック教会","18:30～19:50","テーマ","オープン"]
[2,null,"水","セイルオフグループ","小羽山ふれあいセンター","19:00～20:30","テーマ"]
[2,null,"水","女性クローズド","宇部市総合福祉会館","13:30～15:00","テーマ","ダブルクローズド"]
[2,null,"木","宇部高嶺グループ","宇部市総合福祉会館","19:00～20:30","ステップ"]
[2,null,"木","アジスグループ","元気ハウス(中村区公民館横)","19:00～20:30","テーマ","オープン"]
[2,null,"木","長門グループ","長門市地域福祉センター","18:30～19:30","ビッグブック"]
[2,null,"木","しんさくグループ","下関市清末公民館","19:00～20:30","ビッグブック","オープン"]
[2,null,"木","きぼうグループ","日本キリスト教団宇部緑橋教会","19:30～20:30","ビッグブック"]
[2,null,"金","西京グループ","山口市しらさぎ会館","19:00～20:30","テーマ","オープン　祝祭日は中止"]
[2,null,"金","下関グループ","下関市勤労福祉会館","19:00～20:00","ステップ","祝祭日は中止"]
[2,null,"金","ゆかりグループ","宇部市神原ふれあいセンター","19:30～21:00","ステップ","ＢＢ使用"]
[2,null,"金","光グループ","光キリスト教会","19:00～20:30","ステップ","オープン"]
[2,null,"金","ゆかりグループ","こころの医療センター","19:00～20:00","テーマ","病院メッセージ"]
[2,null,"金","きぼうグループ","宇部市総合福祉会館","19:30～20:30","ステップ"]
[2,null,"土","宇部グループ","宇部市琴芝ふれあいセンター","19:00～20:30","ビジネス"]
[2,null,"土","宇部高嶺グループ","宇部市総合福祉会館","19:00～20:30","リビングソーバー"]
[2,null,"土","徳山グループ","徳山カトリック教会","18:30～19:50","テーマ","オープン"]
[2,null,"土","山口ワンデーグループ","小郡ふれあいセンター","19:00～20:30","テーマ","オープン"]
[2,null,"土","セイルオフグループ","小羽山ふれあいセンター","19:30～20:30","テーマ"]
[2,null,"土","美祢グループ","美祢市勤労福祉会館","19:30～20:30","ビッグブック"]
[2,null,"日","宇部グループ","宇部市総合福祉会館","18:00～19:30","テーマ"]
[2,null,"日","ゆかりグループ","日本キリスト教団宇部緑橋教会","19:00～20:30","テーマ"]
[3,null,"月","西京グループ","山口市しらさぎ会館","19:00～20:30","ステップ","祝祭日は中止"]
[3,null,"月","宇部グループ","宇部市総合福祉会館","19:00～20:30","テーマ"]
[3,null,"月","ＨＳグループ","西宇部ふれあいセンター","19:00～20:30","テーマ","オープン"]
[3,null,"月","山口つばさグループ","日本キリスト教団宇部緑橋教会","19:00～20:30","ビッグブック"]
[3,null,"月","美祢ミーティング","美祢市勤労福祉会館","19:00～20:30","テーマ","オープン"]
[3,null,"月","院内ミーティング","高嶺病院（作業場４）","19:00～20:30","ビギナーズ（Ｑ＆Ａ･テーマ）"]
[3,null,"火","光グループ","岩国市東供用会館","19:00～20:30","テーマ・今日を新たに","オープン"]
[3,null,"火","ステップミーティング","小羽山ふれあいセンター","19:00～20:30","ステップ　Ｑ＆Ａ"]
[3,null,"水","ＨＳグループ","山陽小野田市須恵地域交流センター","19:00～20:30","ステップ","オープン"]
[3,null,"水","徳山グループ","徳山カトリック教会","18:30～19:50","テーマ","オープン"]
[3,null,"水","宇部グループ","上宇部隣保館","19:00～20:30","テーマ","オープン"]
[3,null,"水","セイルオフグループ","小羽山ふれあいセンター","19:00～20:30","テーマ"]
[3,null,"水","ヤングミーティング","神原ふれあいセンター","19:30～20:30","テーマ","35歳以下・ダブルクローズド"]
[3,null,"木","宇部高嶺グループ","宇部市総合福祉会館","19:00～20:30","テーマ"]
[3,null,"木","アジスグループ","元気ハウス(中村区公民館横)","19:00～20:30","ビッグブック"]
[3,null,"木","長門グループ","長門市地域福祉センター","18:30～19:30","ステップ"]
[3,null,"木","しんさくグループ","下関市清末公民館","19:00～20:30","ビジネス"]
[3,null,"木","きぼうグループ","日本キリスト教団宇部緑橋教会","19:30～20:30","ビジネス・伝統"]
[3,null,"金","西京グループ","山口市しらさぎ会館","19:00～20:30","テーマ","オープン　祝祭日は中止"]
[3,null,"金","下関グループ","下関市勤労福祉会館","19:00～20:00","ビジネス・伝統","祝祭日は中止"]
[3,null,"金","ゆかりグループ","宇部市神原ふれあいセンター","19:30～21:00","テーマ・バースデー","(ミーティング後・磨く会）"]
[3,null,"金","光グループ","光キリスト教会","19:00～20:30","テーマ･今日を新たに","オープン"]
[3,null,"金","きぼうグループ","宇部市総合福祉会館","19:30～20:30","テーマ"]
[3,null,"土","宇部グループ","宇部市琴芝ふれあいセンター","19:00～20:30","伝統"]
[3,null,"土","しんさくグループ","下関市清末公民館","19:00～20:30","テーマ","オープン"]
[3,null,"土","宇部高嶺グループ","宇部市総合福祉会館","19:00～20:30","テーマ"]
[3,null,"土","徳山グループ","徳山カトリック教会","18:30～19:50","テーマ","オープン"]
[3,null,"土","山口ワンデーグループ","小郡ふれあいセンター","19:00～20:30","ステップ","オープン"]
[3,null,"土","セイルオフグループ","小羽山ふれあいセンター","19:30～20:30","テーマ"]
[3,null,"土","美祢グループ","美祢市勤労福祉会館","19:30～20:30","テーマ"]
[3,null,"日","宇部グループ","宇部市総合福祉会館","18:00～19:30","ステップ"]
[3,null,"日","ゆかりグループ","日本キリスト教団宇部緑橋教会","19:00～20:30","ステップ","ＢＢ使用"]
[3,null,"日","ＡＡラーン","高嶺病院","14:00～15:00","テーマ"]
[4,null,"月","西京グループ","山口市しらさぎ会館","19:00～20:30","テーマ","祝祭日は中止"]
[4,null,"月","宇部グループ","宇部市総合福祉会館","19:00～20:30","ビッグブック"]
[4,null,"月","ＨＳグループ","西宇部ふれあいセンター","19:00～20:30","ビジネス"]
[4,null,"月","山口つばさグループ","日本キリスト教団宇部緑橋教会","19:00～20:30","ビジネス"]
[4,null,"月","院内ミーティング","高嶺病院（作業場４）","19:00～20:30","ビギナーズ（Ｑ＆Ａ･テーマ）"]
[4,null,"火","厚狭グループ","山陽小野田市厚狭地域交流センター ","19:00～20:30","ステップ","オープン"]
[4,null,"火","光グループ","岩国市東供用会館","19:00～20:30","リビングソーバー","オープン"]
[4,null,"火","ステップミーティング","小羽山ふれあいセンター","19:00～20:30","ステップ　分合"]
[4,null,"水","ＨＳグループ","山陽小野田市須恵地域交流センター","19:00～20:30","テーマ"]
[4,null,"水","徳山グループ","徳山カトリック教会","18:30～19:50","テーマ","オープン"]
[4,null,"水","セイルオフグループ","小羽山ふれあいセンター","19:00～20:30","ビジネス"]
[4,null,"水","第四水曜日の会","日本キリスト教団宇部教会","19:00～20:30","テーマ","オンライン併用"]
[4,null,"水","院内ミーティング","宇部協立病院内","14:00～15:15","ビギナーズ（Ｑ＆Ａ、テーマ）","祝祭日は中止・オープン"]
[4,null,"木","宇部高嶺グループ","宇部市総合福祉会館","19:00～20:30","伝統"]
[4,null,"木","アジスグループ","元気ハウス(中村区公民館横)","19:00～20:30","テーマ","オープン"]
[4,null,"木","長門グループ","長門市地域福祉センター","18:30～19:30","伝統"]
[4,null,"木","しんさくグループ","下関市清末公民館","19:00～20:30","ビッグブック","オープン"]
[4,null,"木","きぼうグループ","日本キリスト教団宇部緑橋教会","19:30～20:30","ビッグブック"]
[4,null,"金","西京グループ","山口市しらさぎ会館","19:00～20:30","テーマ","オープン　祝祭日は中止"]
[4,null,"金","下関グループ","下関市勤労福祉会館","19:00～20:00","ビッグブック","祝祭日は中止"]
[4,null,"金","ゆかりグループ","宇部市神原ふれあいセンター","19:30～21:00","ステップ","ＢＢ使用"]
[4,null,"金","光グループ","光キリスト教会","19:00～20:30","テーマ","オープン"]
[4,null,"金","きぼうグループ","宇部市総合福祉会館","19:30～20:30","ステップ"]
[4,null,"土","宇部グループ","宇部市琴芝ふれあいセンター","19:00～20:30","ビジネス"]
[4,null,"土","宇部高嶺グループ","宇部市総合福祉会館","19:00～20:30","今日を新たに"]
[4,null,"土","徳山グループ","徳山カトリック教会","18:30～19:50","テーマ","オープン"]
[4,null,"土","山口ワンデーグループ","小郡ふれあいセンター","19:00～20:30","テーマ","オープン"]
[4,null,"土","セイルオフグループ","小羽山ふれあいセンター","19:30～20:30","テーマ"]
[4,null,"土","美祢グループ","美祢市勤労福祉会館","19:30～20:30","ビッグブック"]
[4,null,"日","宇部グループ","宇部市総合福祉会館","18:00～19:30","テーマ","最終週はバースデー"]
[4,null,"日","ゆかりグループ","日本キリスト教団宇部緑橋教会","19:00～20:30","ビジネス"]
[4,null,"日","山口地区委員会","高嶺病院","14:00～15:00","テーマ","病院メッセージ"]
[5,null,"月","西京グループ","山口市しらさぎ会館","19:00～20:30","テーマ","祝祭日は中止"]
[5,null,"月","宇部グループ","宇部市総合福祉会館","19:00～20:30","テーマ"]
[5,null,"月","ＨＳグループ","西宇部ふれあいセンター","19:00～20:30","テーマ"]
[5,null,"月","山口つばさグループ","日本キリスト教団宇部緑橋教会","19:00～20:30","テーマ"]
[5,null,"月","院内ミーティング","高嶺病院（作業場４）","19:00～20:30","ビギナーズ（Ｑ＆Ａ･テーマ）"]
[5,null,"火","光グループ","岩国市東供用会館","19:00～20:30","テーマ・今日を新たに","オープン"]
[5,null,"火","ステップミーティング","小羽山ふれあいセンター","19:00～20:30","ビジネス"]
[5,null,"水","ＨＳグループ","山陽小野田市須恵地域交流センター","19:00～20:30","テーマ"]
[5,null,"水","徳山グループ","徳山カトリック教会","18:30～19:50","テーマ","オープン"]
[5,null,"水","セイルオフグループ","小羽山ふれあいセンター","19:00～20:30","テーマ"]
[5,null,"木","宇部高嶺グループ","宇部市総合福祉会館","19:00～20:30","テーマ"]
[5,null,"木","アジスグループ","元気ハウス(中村区公民館横)","19:00～20:30","テーマ"]
[5,null,"木","長門グループ","長門市地域福祉センター","18:30～19:30","ビジネス"]
[5,null,"木","しんさくグループ","下関市清末公民館","19:00～20:30","テーマ","オープン"]
[5,null,"木","きぼうグループ","日本キリスト教団宇部緑橋教会","19:30～20:30","テーマ"]
[5,null,"金","西京グループ","山口市しらさぎ会館","19:00～20:30","テーマ","オープン　祝祭日は中止"]
[5,null,"金","下関グループ","下関市勤労福祉会館","19:00～20:00","テーマ","祝祭日は中止"]
[5,null,"金","ゆかりグループ","宇部市神原ふれあいセンター","19:30～21:00","テーマ"]
[5,null,"金","光グループ","光キリスト教会","19:00～20:30","テーマ･今日を新たに","オープン"]
[5,null,"金","きぼうグループ","宇部市総合福祉会館","19:30～20:30","テーマ"]
[5,null,"土","宇部グループ","宇部市琴芝ふれあいセンター","19:00～20:30","ビジネス"]
[5,null,"土","しんさくグループ","下関市清末公民館","19:00～20:30","テーマ","オープン"]
[5,null,"土","宇部高嶺グループ","宇部市総合福祉会館","19:00～20:30","テーマ"]
[5,null,"土","徳山グループ","徳山カトリック教会","18:30～19:50","テーマ","オープン"]
[5,null,"土","山口ワンデーグループ","小郡ふれあいセンター","19:00～20:30","Ｑ＆Ａ・ビジネス","オープン"]
[5,null,"土","セイルオフグループ","小羽山ふれあいセンター","19:30～20:30","サービス"]
[5,null,"土","美祢グループ","美祢市勤労福祉会館","19:30～20:30","テーマ"]
[5,null,"日","宇部グループ","宇部市総合福祉会館","18:00～19:30","テーマ","最終週はバースデー"]
[5,null,"日","ゆかりグループ","日本キリスト教団宇部緑橋教会","19:00～20:30","テーマ","オープン"]

{"sheet":"Schedule","index":3,"n_rows":161,"n_cols":10,"rows_kept":161,"cut":false,"hidden":false,"merged":[]}
["This worksheet was created by Pickel (Yukari Group - Yamaguchi)",null,"PW ↓","2019-06-30",null,null,null,"2023.12.3"]
[null,null,"aaymmt",null,null,null,null,{"$f":"CONCATENATE(\"ＡＡ山口地区ミーティング案内　週間スケジュール表　(\",H1,\" 改訂)　より引用 \")","v":"ＡＡ山口地区ミーティング案内　週間スケジュール表　(2023.12.3 改訂)　より引用 "}]
[null,"日","曜","グ　ル　ー　プ","会　場","時　間","内　容","備　考",null,"　ミーティング参加計画表アップデート時の注意事項"]
[1,null,"月","西京グループ","山口市しらさぎ会館","19:00～20:30","テーマ","祝祭日は中止",null,"　・　アップデート時は「meeting_update」ファイルを先に開いておいてください"]
[1,null,"月","宇部グループ","宇部市総合福祉会館","19:00～20:30","テーマ",null,null,"　・　「Template」シートの「アップデート」ボタンを押してください"]
[1,null,"月","ＨＳグループ","西宇部ふれあいセンター","19:00～20:30","ステップ",null,null,"　・　シートの保護解除でパスワードの入力が求められますので「 aaymmt 」"]
[1,null,"月","山口つばさグループ","日本キリスト教団宇部緑橋教会","19:00～20:30","ステップ",null,null,"　　　を入力してください"]
[1,null,"月","美祢ミーティング","美祢市勤労福祉会館","19:00～20:30","ビッグブック","オープン",null,"　・　シートの削除をするか聞いてきますので「削除」ボタンを押してください"]
[1,null,"月","院内ミーティング","高嶺病院（作業場４）","19:00～20:30","ビギナーズ（Ｑ＆Ａ･テーマ）",null,null,"　・　修正版の日付が「meeting_update」ファイルの日付になっていれば"]
[1,null,"火","光グループ","岩国市東供用会館","19:00～20:30","テーマ・今日を新たに","オープン",null,"　　　アップデートは完了です"]
[1,null,"火","ステップミーティング","小羽山ふれあいセンター","19:00～20:30","ステップ　Ｑ＆Ａ"]
[1,null,"水","ＨＳグループ","山陽小野田市須恵地域交流センター","19:00～20:30","ビッグブック"]
[1,null,"水","徳山グループ","徳山カトリック教会","18:30～19:50","テーマ","オープン"]
[1,null,"水","宇部グループ","上宇部隣保館","19:00～20:30","テーマ","オープン"]
[1,null,"水","セイルオフグループ","小羽山ふれあいセンター","19:00～20:30","ビッグブック"]
[1,null,"水","ヤングミーティング","高嶺病院デイケア棟","19:30～20:30","テーマ","35歳以下・ダブルクローズド"]
[1,null,"木","宇部高嶺グループ","宇部市総合福祉会館","19:00～20:30","テーマ"]
[1,null,"木","アジスグループ","元気ハウス(中村区公民館横)","19:00～20:30","テーマ"]
[1,null,"木","長門グループ","長門市地域福祉センター","18:30～19:30","ステップ"]
[1,null,"木","しんさくグループ","下関市清末公民館","19:00～20:30","伝統"]
[1,null,"木","きぼうグループ","日本キリスト教団宇部緑橋教会","19:30～20:30","テーマ"]
[1,null,"金","西京グループ","山口市しらさぎ会館","19:00～20:30","テーマ","オープン　祝祭日は中止"]
[1,null,"金","下関グループ","下関市勤労福祉会館","19:00～20:00","テーマ","祝祭日は中止"]
[1,null,"金","ゆかりグループ","宇部市神原ふれあいセンター","19:30～21:00","テーマ"]
[1,null,"金","光グループ","光キリスト教会","19:00～20:30","テーマ･今日を新たに","オープン"]
[1,null,"金","きぼうグループ","宇部市総合福祉会館","19:30～20:30","テーマ"]
[1,null,"土","宇部グループ","宇部市琴芝ふれあいセンター","19:00～20:30","サービス"]
[1,null,"土","しんさくグループ","下関市清末公民館","19:00～20:30","テーマ","オープン"]
[1,null,"土","宇部高嶺グループ","宇部市総合福祉会館","19:00～20:30","テーマ"]
[1,null,"土","徳山グループ","徳山カトリック教会","18:30～19:50","テーマ","オープン"]
[1,null,"土","山口ワンデーグループ","小郡ふれあいセンター","19:00～20:30","ビッグブック","オープン"]
[1,null,"土","セイルオフグループ","小羽山ふれあいセンター","19:30～20:30","伝統"]
[1,null,"土","美祢グループ","美祢市勤労福祉会館","19:30～20:30","テーマ"]
[1,null,"日","宇部グループ","宇部市総合福祉会館","18:00～19:30","ステップ"]
[1,null,"日","ゆかりグループ","日本キリスト教団宇部緑橋教会","19:00～20:30","ステップ","ＢＢ使用"]
[1,null,"日","ＡＡラーン","高嶺病院","14:00～15:00","テーマ"]
[2,null,"月","西京グループ","山口市しらさぎ会館","19:00～20:30","ビジネス・伝統","祝祭日は中止"]
[2,null,"月","宇部グループ","宇部市総合福祉会館","19:00～20:30","ビッグブック"]
[2,null,"月","ＨＳグループ","西宇部ふれあいセンター","19:00～20:30","伝統"]
[2,null,"月","山口つばさグループ","日本キリスト教団宇部緑橋教会","19:00～20:30","伝統"]
[2,null,"月","院内ミーティング","高嶺病院（作業場４）","19:00～20:30","ビギナーズ（Ｑ＆Ａ･テーマ）"]
[2,null,"火","厚狭グループ","山陽小野田市厚狭地域交流センター ","19:00～20:30","ビッグブック","オープン"]
[2,null,"火","光グループ","岩国市東供用会館","19:00～20:30","リビングソーバー","オープン"]
[2,null,"火","ステップミーティング","小羽山ふれあいセンター","19:00～20:30","ステップ　分合"]
[2,null,"水","ＨＳグループ","山陽小野田市須恵地域交流センター","19:00～20:30","テーマ"]
[2,null,"水","徳山グループ","徳山カトリック教会","18:30～19:50","テーマ","オープン"]
[2,null,"水","セイルオフグループ","小羽山ふれあいセンター","19:00～20:30","テーマ"]
[2,null,"水","女性クローズド","宇部市総合福祉会館","13:30～15:00","テーマ","ダブルクローズド"]
[2,null,"木","宇部高嶺グループ","宇部市総合福祉会館","19:00～20:30","ステップ"]
[2,null,"木","アジスグループ","元気ハウス(中村区公民館横)","19:00～20:30","テーマ","オープン"]
[2,null,"木","長門グループ","長門市地域福祉センター","18:30～19:30","ビッグブック"]
[2,null,"木","しんさくグループ","下関市清末公民館","19:00～20:30","ビッグブック","オープン"]
[2,null,"木","きぼうグループ","日本キリスト教団宇部緑橋教会","19:30～20:30","ビッグブック"]
[2,null,"金","西京グループ","山口市しらさぎ会館","19:00～20:30","テーマ","オープン　祝祭日は中止"]
[2,null,"金","下関グループ","下関市勤労福祉会館","19:00～20:00","ステップ","祝祭日は中止"]
[2,null,"金","ゆかりグループ","宇部市神原ふれあいセンター","19:30～21:00","ステップ","ＢＢ使用"]
[2,null,"金","光グループ","光キリスト教会","19:00～20:30","ステップ","オープン"]
[2,null,"金","ゆかりグループ","こころの医療センター","19:00～20:00","テーマ","病院メッセージ"]
[2,null,"金","きぼうグループ","宇部市総合福祉会館","19:30～20:30","ステップ"]
[2,null,"土","宇部グループ","宇部市琴芝ふれあいセンター","19:00～20:30","ビジネス"]
[2,null,"土","宇部高嶺グループ","宇部市総合福祉会館","19:00～20:30","リビングソーバー"]
[2,null,"土","徳山グループ","徳山カトリック教会","18:30～19:50","テーマ","オープン"]
[2,null,"土","山口ワンデーグループ","小郡ふれあいセンター","19:00～20:30","テーマ","オープン"]
[2,null,"土","セイルオフグループ","小羽山ふれあいセンター","19:30～20:30","テーマ"]
[2,null,"土","美祢グループ","美祢市勤労福祉会館","19:30～20:30","ビッグブック"]
[2,null,"日","宇部グループ","宇部市総合福祉会館","18:00～19:30","テーマ"]
[2,null,"日","ゆかりグループ","日本キリスト教団宇部緑橋教会","19:00～20:30","テーマ"]
[3,null,"月","西京グループ","山口市しらさぎ会館","19:00～20:30","ステップ","祝祭日は中止"]
[3,null,"月","宇部グループ","宇部市総合福祉会館","19:00～20:30","テーマ"]
[3,null,"月","ＨＳグループ","西宇部ふれあいセンター","19:00～20:30","テーマ","オープン"]
[3,null,"月","山口つばさグループ","日本キリスト教団宇部緑橋教会","19:00～20:30","ビッグブック"]
[3,null,"月","美祢ミーティング","美祢市勤労福祉会館","19:00～20:30","テーマ","オープン"]
[3,null,"月","院内ミーティング","高嶺病院（作業場４）","19:00～20:30","ビギナーズ（Ｑ＆Ａ･テーマ）"]
[3,null,"火","光グループ","岩国市東供用会館","19:00～20:30","テーマ・今日を新たに","オープン"]
[3,null,"火","ステップミーティング","小羽山ふれあいセンター","19:00～20:30","ステップ　Ｑ＆Ａ"]
[3,null,"水","ＨＳグループ","山陽小野田市須恵地域交流センター","19:00～20:30","ステップ","オープン"]
[3,null,"水","徳山グループ","徳山カトリック教会","18:30～19:50","テーマ","オープン"]
[3,null,"水","宇部グループ","上宇部隣保館","19:00～20:30","テーマ","オープン"]
[3,null,"水","セイルオフグループ","小羽山ふれあいセンター","19:00～20:30","テーマ"]
[3,null,"水","ヤングミーティング","神原ふれあいセンター","19:30～20:30","テーマ","35歳以下・ダブルクローズド"]
[3,null,"木","宇部高嶺グループ","宇部市総合福祉会館","19:00～20:30","テーマ"]
[3,null,"木","アジスグループ","元気ハウス(中村区公民館横)","19:00～20:30","ビッグブック"]
[3,null,"木","長門グループ","長門市地域福祉センター","18:30～19:30","ステップ"]
[3,null,"木","しんさくグループ","下関市清末公民館","19:00～20:30","ビジネス"]
[3,null,"木","きぼうグループ","日本キリスト教団宇部緑橋教会","19:30～20:30","ビジネス・伝統"]
[3,null,"金","西京グループ","山口市しらさぎ会館","19:00～20:30","テーマ","オープン　祝祭日は中止"]
[3,null,"金","下関グループ","下関市勤労福祉会館","19:00～20:00","ビジネス・伝統","祝祭日は中止"]
[3,null,"金","ゆかりグループ","宇部市神原ふれあいセンター","19:30～21:00","テーマ・バースデー","(ミーティング後・磨く会）"]
[3,null,"金","光グループ","光キリスト教会","19:00～20:30","テーマ･今日を新たに","オープン"]
[3,null,"金","きぼうグループ","宇部市総合福祉会館","19:30～20:30","テーマ"]
[3,null,"土","宇部グループ","宇部市琴芝ふれあいセンター","19:00～20:30","伝統"]
[3,null,"土","しんさくグループ","下関市清末公民館","19:00～20:30","テーマ","オープン"]
[3,null,"土","宇部高嶺グループ","宇部市総合福祉会館","19:00～20:30","テーマ"]
[3,null,"土","徳山グループ","徳山カトリック教会","18:30～19:50","テーマ","オープン"]
[3,null,"土","山口ワンデーグループ","小郡ふれあいセンター","19:00～20:30","ステップ","オープン"]
[3,null,"土","セイルオフグループ","小羽山ふれあいセンター","19:30～20:30","テーマ"]
[3,null,"土","美祢グループ","美祢市勤労福祉会館","19:30～20:30","テーマ"]
[3,null,"日","宇部グループ","宇部市総合福祉会館","18:00～19:30","ステップ"]
[3,null,"日","ゆかりグループ","日本キリスト教団宇部緑橋教会","19:00～20:30","ステップ","ＢＢ使用"]
[3,null,"日","ＡＡラーン","高嶺病院","14:00～15:00","テーマ"]
[4,null,"月","西京グループ","山口市しらさぎ会館","19:00～20:30","テーマ","祝祭日は中止"]
[4,null,"月","宇部グループ","宇部市総合福祉会館","19:00～20:30","ビッグブック"]
[4,null,"月","ＨＳグループ","西宇部ふれあいセンター","19:00～20:30","ビジネス"]
[4,null,"月","山口つばさグループ","日本キリスト教団宇部緑橋教会","19:00～20:30","ビジネス"]
[4,null,"月","院内ミーティング","高嶺病院（作業場４）","19:00～20:30","ビギナーズ（Ｑ＆Ａ･テーマ）"]
[4,null,"火","厚狭グループ","山陽小野田市厚狭地域交流センター ","19:00～20:30","ステップ","オープン"]
[4,null,"火","光グループ","岩国市東供用会館","19:00～20:30","リビングソーバー","オープン"]
[4,null,"火","ステップミーティング","小羽山ふれあいセンター","19:00～20:30","ステップ　分合"]
[4,null,"水","ＨＳグループ","山陽小野田市須恵地域交流センター","19:00～20:30","テーマ"]
[4,null,"水","徳山グループ","徳山カトリック教会","18:30～19:50","テーマ","オープン"]
[4,null,"水","セイルオフグループ","小羽山ふれあいセンター","19:00～20:30","ビジネス"]
[4,null,"水","第四水曜日の会","日本キリスト教団宇部教会","19:00～20:30","テーマ","オンライン併用"]
[4,null,"水","院内ミーティング","宇部協立病院内","14:00～15:15","ビギナーズ（Ｑ＆Ａ、テーマ）","祝祭日は中止・オープン"]
[4,null,"木","宇部高嶺グループ","宇部市総合福祉会館","19:00～20:30","伝統"]
[4,null,"木","アジスグループ","元気ハウス(中村区公民館横)","19:00～20:30","テーマ","オープン"]
[4,null,"木","長門グループ","長門市地域福祉センター","18:30～19:30","伝統"]
[4,null,"木","しんさくグループ","下関市清末公民館","19:00～20:30","ビッグブック","オープン"]
[4,null,"木","きぼうグループ","日本キリスト教団宇部緑橋教会","19:30～20:30","ビッグブック"]
[4,null,"金","西京グループ","山口市しらさぎ会館","19:00～20:30","テーマ","オープン　祝祭日は中止"]
[4,null,"金","下関グループ","下関市勤労福祉会館","19:00～20:00","ビッグブック","祝祭日は中止"]
[4,null,"金","ゆかりグループ","宇部市神原ふれあいセンター","19:30～21:00","ステップ","ＢＢ使用"]
[4,null,"金","光グループ","光キリスト教会","19:00～20:30","テーマ","オープン"]
[4,null,"金","きぼうグループ","宇部市総合福祉会館","19:30～20:30","ステップ"]
[4,null,"土","宇部グループ","宇部市琴芝ふれあいセンター","19:00～20:30","ビジネス"]
[4,null,"土","宇部高嶺グループ","宇部市総合福祉会館","19:00～20:30","今日を新たに"]
[4,null,"土","徳山グループ","徳山カトリック教会","18:30～19:50","テーマ","オープン"]
[4,null,"土","山口ワンデーグループ","小郡ふれあいセンター","19:00～20:30","テーマ","オープン"]
[4,null,"土","セイルオフグループ","小羽山ふれあいセンター","19:30～20:30","テーマ"]
[4,null,"土","美祢グループ","美祢市勤労福祉会館","19:30～20:30","ビッグブック"]
[4,null,"日","宇部グループ","宇部市総合福祉会館","18:00～19:30","テーマ","最終週はバースデー"]
[4,null,"日","ゆかりグループ","日本キリスト教団宇部緑橋教会","19:00～20:30","ビジネス"]
[4,null,"日","山口地区委員会","高嶺病院","14:00～15:00","テーマ","病院メッセージ"]
[5,null,"月","西京グループ","山口市しらさぎ会館","19:00～20:30","テーマ","祝祭日は中止"]
[5,null,"月","宇部グループ","宇部市総合福祉会館","19:00～20:30","テーマ"]
[5,null,"月","ＨＳグループ","西宇部ふれあいセンター","19:00～20:30","テーマ"]
[5,null,"月","山口つばさグループ","日本キリスト教団宇部緑橋教会","19:00～20:30","テーマ"]
[5,null,"月","院内ミーティング","高嶺病院（作業場４）","19:00～20:30","ビギナーズ（Ｑ＆Ａ･テーマ）"]
[5,null,"火","光グループ","岩国市東供用会館","19:00～20:30","テーマ・今日を新たに","オープン"]
[5,null,"火","ステップミーティング","小羽山ふれあいセンター","19:00～20:30","ビジネス"]
[5,null,"水","ＨＳグループ","山陽小野田市須恵地域交流センター","19:00～20:30","テーマ"]
[5,null,"水","徳山グループ","徳山カトリック教会","18:30～19:50","テーマ","オープン"]
[5,null,"水","セイルオフグループ","小羽山ふれあいセンター","19:00～20:30","テーマ"]
[5,null,"木","宇部高嶺グループ","宇部市総合福祉会館","19:00～20:30","テーマ"]
[5,null,"木","アジスグループ","元気ハウス(中村区公民館横)","19:00～20:30","テーマ"]
[5,null,"木","長門グループ","長門市地域福祉センター","18:30～19:30","ビジネス"]
[5,null,"木","しんさくグループ","下関市清末公民館","19:00～20:30","テーマ","オープン"]
[5,null,"木","きぼうグループ","日本キリスト教団宇部緑橋教会","19:30～20:30","テーマ"]
[5,null,"金","西京グループ","山口市しらさぎ会館","19:00～20:30","テーマ","オープン　祝祭日は中止"]
[5,null,"金","下関グループ","下関市勤労福祉会館","19:00～20:00","テーマ","祝祭日は中止"]
[5,null,"金","ゆかりグループ","宇部市神原ふれあいセンター","19:30～21:00","テーマ"]
[5,null,"金","光グループ","光キリスト教会","19:00～20:30","テーマ･今日を新たに","オープン"]
[5,null,"金","きぼうグループ","宇部市総合福祉会館","19:30～20:30","テーマ"]
[5,null,"土","宇部グループ","宇部市琴芝ふれあいセンター","19:00～20:30","ビジネス"]
[5,null,"土","しんさくグループ","下関市清末公民館","19:00～20:30","テーマ","オープン"]
[5,null,"土","宇部高嶺グループ","宇部市総合福祉会館","19:00～20:30","テーマ"]
[5,null,"土","徳山グループ","徳山カトリック教会","18:30～19:50","テーマ","オープン"]
[5,null,"土","山口ワンデーグループ","小郡ふれあいセンター","19:00～20:30","Ｑ＆Ａ・ビジネス","オープン"]
[5,null,"土","セイルオフグループ","小羽山ふれあいセンター","19:30～20:30","サービス"]
[5,null,"土","美祢グループ","美祢市勤労福祉会館","19:30～20:30","テーマ"]
[5,null,"日","宇部グループ","宇部市総合福祉会館","18:00～19:30","テーマ","最終週はバースデー"]
[5,null,"日","ゆかりグループ","日本キリスト教団宇部緑橋教会","19:00～20:30","テーマ","オープン"]

{"sheet":"Prototype","index":4,"n_rows":110,"n_cols":8,"rows_kept":110,"cut":false,"hidden":false,"merged":[[34,1,34,7],[3,0,9,0],[10,0,16,0],[17,0,23,0],[24,0,30,0],[31,0,33,0],[73,3,79,3],[36,0,42,0],[43,0,49,0],[50,0,56,0],[57,0,63,0],[64,0,70,0]]}
[null,"ミーティング参加計画表",null,null,null,null,null,"２０１９年7月"]
[]
[null,"日","曜","グ　ル　ー　プ","会　場","時　間","内　容","備　考"]
[1,1]
[null,2]
[null,3]
[null,4]
[null,5]
[null,6]
[null,7]
[2,8]
[null,9]
[null,10]
[null,11]
[null,12]
[null,13]
[null,14]
[3,15]
[null,16]
[null,17]
[null,18]
[null,19]
[null,20]
[null,21]
[4,22]
[null,23]
[null,24]
[null,25]
[null,26]
[null,27]
[null,28]
[5,29]
[null,30]
[null,31]
[null," MEMO\n\n"]
[null,"日","曜","グ　ル　ー　プ","会　場","時　間","内　容","備　考"]
[1,null,"月"]
[null,null,"火","ステップミーティング","宇部カトリック教会","19:30～21:00","ステップ　○　Ｑ＆Ａ"]
[null,null,"水"]
[null,null,"木"]
[null,null,"金","ゆかりグループ","神原ふれあいセンター","19:30～21:00","テーマ"]
[null,null,"土"]
[null,null,"日","ゆかりグループ","常盤ふれあいセンター","19:00～20:30","ステップ　○","BB"]
[2,null,"月"]
[null,null,"火","ステップミーティング","宇部カトリック教会","19:30～21:00","ステップ　○　分合"]
[null,null,"水","夜間例会","高嶺病院","19:00～20:00","テーマ"]
[null,null,"木"]
[null,null,"金","ゆかりグループ","神原ふれあいセンター","19:30～21:00","ステップ　○","BB"]
[null,null,"土"]
[null,null,"日","ゆかりグループ","常盤ふれあいセンター","19:00～20:30","テーマ"]
[3,null,"月"]
[null,null,"火","ステップミーティング","宇部カトリック教会","19:30～21:00","ステップ　○　Ｑ＆Ａ"]
[null,null,"水"]
[null,null,"木"]
[null,null,"金","ゆかりグループ","神原ふれあいセンター","19:30～21:00","バースデー","男を磨く会"]
[null,null,"土"]
[null,null,"日","ゆかりグループ","常盤ふれあいセンター","19:00～20:30","ステップ　○","BB"]
[4,null,"月"]
[null,null,"火","ステップミーティング","宇部カトリック教会","19:30～21:00","ステップ　○　分合"]
[null,null,"水","夜間例会","高嶺病院","19:00～20:00","テーマ"]
[null,null,"木"]
[null,null,"金","ゆかりグループ","神原ふれあいセンター","19:30～21:00","ステップ　○","BB"]
[null,null,"土"]
[null,null,"日","ゆかりグループ","常盤ふれあいセンター","19:00～20:30","ビジネス"]
[5,null,"月"]
[null,null,"火","ステップミーティング","宇部カトリック教会","19:30～21:00","ビジネス"]
[null,null,"水"]
[null,null,"木"]
[null,null,"金","ゆかりグループ","神原ふれあいセンター","19:30～21:00","テーマ"]
[null,null,"土"]
[null,null,"日","ゆかりグループ","常盤ふれあいセンター","19:00～20:30","テーマ","オープン"]
[]
["曜日の設定"]
[null,{"$f":"IF(B73=\"\",\"\",B73+1)","v":""},"月","Ｂ列に1日が何曜日になるかを設定する\n該当曜日のＢ列に「１」を入力"]
[null,"","火"]
[null,"","水"]
[null,"","木"]
[null,"","金"]
[null,"","土"]
[null,"","日"]
[null,{"$f":"IF(B80=\"\",\"\",B80+1)","v":""},"月"]
[null,{"$f":"IF(B81=\"\",\"\",B81+1)","v":""},"火"]
[null,"","水"]
[null,"","木"]
[null,"","金"]
[null,"","土"]
[null,"","日"]
[null,"","月"]
[null,"","火"]
[null,"","水"]
[null,"","木"]
[null,"","金"]
[null,"","土"]
[null,"","日"]
[null,"","月"]
[null,"","火"]
[null,"","水"]
[null,"","木"]
[null,"","金"]
[null,"","土"]
[null,"","日"]
[null,"","月"]
[null,"","火"]
[null,"","水"]
[null,"","木"]
[null,"","金"]
[null,"","土"]
[null,"","日"]
[]
["This worksheet was created by Pickel(Yukari Group - Yamaguchi district)"]